[Event "WYCC 2018 G18"]
[Site "Halkidiki"]
[Date "2018.10.30"]
[Round "11"]
[White "Janiashvili, Mariami"]
[Black "Tarini Goyal"]
[Result "0-1"]
[ECO "E12"]
[WhiteElo "2081"]
[BlackElo "2026"]
[Annotator "NA"]
[PlyCount "150"]
[EventDate "2018.10.20"]
[EventType "swiss"]
[EventCountry "GRE"]
[SourceTitle "playchess.com"]
[Source "ChessBase"]
[SourceQuality "1"]
[TimeControl "40/5400+30:1800+30"]

1. d4 {[%emt 0:00:00]} Nf6 {[%emt 0:00:00]} 2. c4 {[%emt 0:00:00]} e6 {[%emt 0:00:00]} 3. Nf3 {[%emt 0:00:00]} b6 {[%emt 0:01:03]} 4. a3 {[%emt 0:00:00]} Bb7 {[%emt 0:00:06]} 5. Nc3 {[%emt 0:00:15]} d5 {[%emt 0:00:46]} 6. cxd5 {[%emt 0:00:09]} Nxd5 {[%emt 0:00:27]} 7. e3 {[%emt 0:00:20]} g6 {[%emt 0:01:03]} 8. Bd3 {[%emt 0:03:47] E12: Queen's Indian: Unusual White 4th moves, 4 a3, 4 Nc3 Bb7 5 a3 and 4 Nc3 Bb7} (8. h4 Bg7 9. h5 Nd7 10. Bd3 Nxc3 11. bxc3 e5 12. e4 Qe7 13. h6 Bf6 14. O-O O-O 15. Re1 Rfd8 16. Be3 {1-0 (40) Li,C (2720)-Tomashevsky,E (2711) Sharjah 2017 CBM 177 [Stohl,I]}) 8... Bg7 {[%emt 0:00:10]} 9. O-O {[%emt 0:00:12]} O-O {[%emt 0:04:14]} 10. Na4 {[%emt 0:02:38]} Nd7 {[%emt 0:07:48]} 11. Re1 $146 {[%emt 0:06:21]} ({Predecessor:} 11. e4 N5f6 12. Qe2 h6 13. Rd1 c5 14. dxc5 bxc5 15. Bb5 Qc7 {0-1 (50) Jegorovas,A (2235)-Mironov,I (2325) Suwalki 2000}) 11... c5 {[%emt 0:09:31]} 12. e4 {[%emt 0:07:24]} Ne7 {[%emt 0:00:32]} 13. dxc5 {[%emt 0:00:32]} Nxc5 {[%emt 0:00:20]} 14. Nxc5 {[%emt 0:00:14]} bxc5 {[%emt 0:00:06]} 15. Qc2 {[%emt 0:04:16]} Nc6 {[%emt 0:09:13]} 16. Bg5 {[%emt 0:17:47]} Nd4 {[%emt 0:04:08]} 17. Nxd4 {[%emt 0:10:34]} Qxg5 {[%emt 0:01:16]} 18. Nf3 {[%emt 0:01:34]} Qe7 {[%emt 0:01:04]} 19. Rac1 {[%emt 0:00:35]} Rac8 {[%emt 0:03:55]} 20. Qe2 {[%emt 0:08:57]} Rfd8 {[%emt 0:06:46]} 21. Red1 {[%emt 0:02:38]} Rd7 {[%emt 0:08:04]} 22. Bb5 {[%emt 0:07:32]} Rxd1+ {[%emt 0:00:49]} 23. Rxd1 {[%emt 0:00:14]} Rd8 {[%emt 0:01:35]} 24. Rc1 {[%emt 0:05:54]} Qd6 {[%emt 0:07:22]} 25. h3 {[%emt 0:08:50]} Qb6 {[%emt 0:05:33]} 26. Bc4 {[%emt 0:05:54]} Bc6 {[%emt 0:02:18]} 27. b3 {[%emt 0:01:45]} Bh6 {[%emt 0:05:02]} 28. Re1 {[%emt 0:02:39]} Bg7 {[%emt 0:02:52]} 29. Rc1 {[%emt 0:00:23]} Qb7 {[%emt 0:01:31]} 30. Re1 {[%emt 0:00:15]} Bc3 {[%emt 0:06:47]} 31. Rc1 {[%emt 0:00:31]} Bd4 {[%emt 0:02:49]} 32. Re1 {[%emt 0:03:16]} a5 {[%emt 0:00:26]} 33. Qc2 {[%emt 0:00:26]} Qa8 {[%emt 0:01:53]} 34. h4 {[%emt 0:00:18]} a4 {[%emt 0:01:56]} 35. b4 {[%emt 0:00:01]} cxb4 {[%emt 0:00:38]} 36. axb4 {[%emt 0:00:01]} Bg7 {[%emt 0:00:53]} 37. h5 {[%emt 0:00:22]} a3 {[%emt 0:00:28]} 38. hxg6 {[%emt 0:00:18]} hxg6 {[%emt 0:00:06]} 39. Qa2 {[%emt 0:00:16]} Bxe4 {[%emt 0:04:34]} 40. Bxe6 {[%emt 0:00:00]} Bd5 {[%emt 0:00:00]} 41. Bxd5 {[%emt 0:06:26]} Rxd5 {[%emt 0:01:18]} 42. b5 {[%emt 0:05:19]} Rxb5 {[%emt 0:08:56]} 43. Re7 {[%emt 0:00:18]} Qf8 {[%emt 0:06:24]} 44. Qxa3 {[%emt 0:02:01]} Rb1+ {[%emt 0:01:37]} 45. Kh2 {[%emt 0:00:09]} Qb8+ {[%emt 0:01:50]} 46. g3 {[%emt 0:01:15]} Bf8 {[%emt 0:00:57]} 47. Qe3 {[%emt 0:00:44]} Bxe7 {[%emt 0:00:17]} 48. Qxe7 {[%emt 0:00:06]} Qa8 {[%emt 0:05:16]} 49. Qe3 {[%emt 0:01:37]} Ra1 {[%emt 0:00:31]} 50. Qf4 {[%emt 0:00:51]} Rf1 {[%emt 0:01:27]} 51. Kg2 {[%emt 0:00:20]} Ra1 {[%emt 0:00:39]} 52. Kh2 {[%emt 0:00:04]} Ra4 {[%emt 0:01:28]} 53. Qf6 {[%emt 0:00:07]} Ra6 {[%emt 0:00:35]} 54. Qf4 {[%emt 0:00:05]} Ra5 {[%emt 0:03:02]} 55. Ng5 {[%emt 0:05:22]} Rf5 {[%emt 0:00:54]} 56. Qe3 {[%emt 0:00:06]} Qd8 {[%emt 0:02:02]} 57. Nf3 {[%emt 0:03:01]} Qf6 {[%emt 0:00:34]} 58. Kg2 {[%emt 0:00:15]} Qc6 {[%emt 0:00:27]} 59. Qd3 {[%emt 0:00:35]} Rf6 {[%emt 0:01:54]} 60. g4 {[%emt 0:01:00]} (60. Qe3 $142) 60... Qd6 {[%emt 0:00:11]} 61. Qxd6 {[%emt 0:00:13]} Rxd6 {[%emt 0:00:02]} 62. Ne5 {[%emt 0:00:28]} g5 {[%emt 0:00:46]} 63. Kf3 {[%emt 0:00:38]} Rd4 {[%emt 0:00:11]} 64. Kg3 {[%emt 0:00:36]} Kg7 {[%emt 0:00:40]} 65. Nf3 {[%emt 0:00:30]} Rd3 {[%emt 0:00:10]} 66. Kg2 {[%emt 0:00:04]} f6 {[%emt 0:00:16]} 67. Ne1 {[%emt 0:00:09]} Rd1 {[%emt 0:00:06]} 68. Nc2 {[%emt 0:00:05]} Kf7 {[%emt 0:00:12]} 69. Ne3 {[%emt 0:00:05]} Rd4 {[%emt 0:00:05]} 70. Kg3 {[%emt 0:00:35]} Ra4 {[%emt 0:00:08]} 71. Nf5 {[%emt 0:00:35]} Ke6 {[%emt 0:00:10]} 72. Ne3 {[%emt 0:00:33]} Ke5 {[%emt 0:00:28]} 73. Nf5 {[%emt 0:00:31]} Ke4 {[%emt 0:00:28]} 74. Nd6+ {[%emt 0:00:14]} Kd3 {[%emt 0:00:19]} 75. Nf5 $19 {[%emt 0:00:28]} Ke2 {[%emt 0:00:12]} 0-1

[Event "WYCC 2018 G18"]
[Site "Halkidiki"]
[Date "2018.10.30"]
[Round "11"]
[White "Limanovska, Elizabete"]
[Black "Miller, Rachel"]
[Result "1-0"]
[ECO "C77"]
[WhiteElo "2072"]
[BlackElo "1859"]
[Annotator "NA"]
[PlyCount "157"]
[EventDate "2018.10.20"]
[EventType "swiss"]
[EventCountry "GRE"]
[SourceTitle "playchess.com"]
[Source "ChessBase"]
[SourceQuality "1"]
[TimeControl "40/5400+30:1800+30"]

1. e4 {[%emt 0:00:00]} e5 {[%emt 0:00:00]} 2. Nf3 {[%emt 0:00:00]} Nc6 {[%emt 0:00:00]} 3. Bb5 {[%emt 0:00:00]} a6 {[%emt 0:00:00]} 4. Ba4 {[%emt 0:00:00]} Nf6 {[%emt 0:00:02]} 5. d3 {[%emt 0:00:00]} d6 {[%emt 0:00:12]} 6. c3 {[%emt 0:00:36]} g6 {[%emt 0:00:25]} 7. O-O {[%emt 0:01:39]} Bg7 {[%emt 0:00:22]} 8. h3 {[%emt 0:03:12]} O-O {[%emt 0:00:14]} 9. Bg5 {[%emt 0:03:05]} b5 {[%emt 0:06:33] C77: Ruy Lopez: 3...a6 4 Ba4 Nf6, unusual lines} 10. Bc2 {[%emt 0:02:02]} h6 {[%emt 0:01:02]} 11. Be3 {[%emt 0:02:07]} d5 {[%emt 0:01:47]} 12. Qe2 $146 {[%emt 0:10:53]} ({Predecessor:} 12. Bc5 Re8 13. a4 Be6 14. axb5 axb5 15. Na3 Nd7 16. b4 Nxc5 17. bxc5 {0-1 (35) Ilic,L (2189)-Schachinger,M (2439) Skopje 2015}) 12... Be6 {[%emt 0:02:47]} 13. Rd1 {[%emt 0:07:49]} Qc8 {[%emt 0:12:34]} 14. Nbd2 {[%emt 0:01:25]} Rd8 {[%emt 0:13:38]} 15. Nb3 {[%emt 0:12:35]} a5 {[%emt 0:18:08]} 16. Nc5 {[%emt 0:05:49]} dxe4 {[%emt 0:00:17]} 17. dxe4 {[%emt 0:00:16]} Bc4 {[%emt 0:00:59]} 18. Qe1 {[%emt 0:00:58]} Nh5 {[%emt 0:05:27]} (18... Rxd1 $16 {keeps fighting.} 19. Qxd1 (19. Rxd1 Bxa2 20. b3 a4 $16) 19... Bf8) 19. Rxd8+ {[%emt 0:04:38]} Nxd8 {[%emt 0:00:25]} 20. b3 {[%emt 0:00:10]} Be6 {[%emt 0:00:49]} 21. Rd1 {[%emt 0:05:29]} Nb7 {[%emt 0:07:16]} 22. Nxe6 {[%emt 0:02:09]} Qxe6 {[%emt 0:00:05]} 23. Bd3 {[%emt 0:10:18]} Nd6 {[%emt 0:02:32]} 24. Qe2 {[%emt 0:02:52]} Nf6 {[%emt 0:05:39]} 25. Bc5 {[%emt 0:02:26]} Nb7 {[%emt 0:02:43]} 26. Be3 {[%emt 0:00:23]} Nd6 {[%emt 0:00:07]} 27. Nd2 {[%emt 0:01:41]} c6 {[%emt 0:02:03]} 28. c4 {[%emt 0:00:58]} a4 {[%emt 0:05:08]} 29. cxb5 {[%emt 0:03:10]} axb3 {[%emt 0:00:13]} 30. axb3 {[%emt 0:00:51]} cxb5 {[%emt 0:00:57]} 31. Bxb5 {[%emt 0:02:12]} Ndxe4 {[%emt 0:01:46]} 32. Nxe4 {[%emt 0:00:06]} Nxe4 {[%emt 0:00:06]} 33. Qd3 {[%emt 0:00:29]} Nf6 {[%emt 0:01:12]} 34. Bc4 {[%emt 0:01:03]} e4 {[%emt 0:01:27]} 35. Qd2 {[%emt 0:02:11]} Qe5 {[%emt 0:00:34]} 36. Bxh6 {[%emt 0:01:45]} Nh5 {[%emt 0:03:28]} 37. Bxg7 {[%emt 0:01:03]} Nxg7 {[%emt 0:00:12]} 38. Qd5 {[%emt 0:02:54]} Qxd5 {[%emt 0:00:06]} 39. Bxd5 {[%emt 0:01:01]} Rb8 {[%emt 0:00:10]} 40. Re1 {[%emt 0:00:00]} Nh5 {[%emt 0:00:00]} 41. Bc4 {[%emt 0:04:37]} Nf6 {[%emt 0:02:01]} 42. g4 {[%emt 0:01:11]} g5 {[%emt 0:00:39]} 43. Ra1 {[%emt 0:01:12]} e3 {[%emt 0:07:41]} 44. fxe3 {[%emt 0:02:21]} Ne4 {[%emt 0:00:06]} 45. Ra5 {[%emt 0:04:17]} Kf8 {[%emt 0:02:18]} 46. Rf5 {[%emt 0:02:31]} f6 {[%emt 0:00:49]} 47. Bd5 {[%emt 0:01:45]} Rb4 {[%emt 0:01:07]} 48. Bxe4 {[%emt 0:02:05]} Rxe4 {[%emt 0:00:05]} 49. Rxf6+ {[%emt 0:04:15]} Ke7 {[%emt 0:02:03]} 50. Rf3 {[%emt 0:01:06]} Rb4 {[%emt 0:00:15]} 51. Kf2 {[%emt 0:03:07]} Rxb3 {[%emt 0:00:17]} 52. Rf5 {[%emt 0:00:09]} Rb2+ {[%emt 0:00:22]} 53. Kg3 {[%emt 0:01:36]} Re2 {[%emt 0:00:29]} 54. Rxg5 {[%emt 0:00:42]} Rxe3+ {[%emt 0:00:07]} 55. Kh4 {[%emt 0:00:04]} Kf6 {[%emt 0:00:23]} 56. Ra5 {[%emt 0:00:14]} Kg6 {[%emt 0:01:32]} 57. Ra4 {[%emt 0:01:09]} Rb3 {[%emt 0:00:42]} 58. Rf4 {[%emt 0:01:56]} Ra3 {[%emt 0:04:00]} 59. g5 {[%emt 0:00:26]} Ra1 {[%emt 0:00:15]} 60. Rf6+ {[%emt 0:00:06]} Kg7 {[%emt 0:00:19]} 61. Kh5 {[%emt 0:00:13]} Ra4 {[%emt 0:03:06]} 62. Rb6 {[%emt 0:00:47]} Ra7 {[%emt 0:02:32]} 63. h4 {[%emt 0:00:11]} Rc7 {[%emt 0:00:09]} 64. Rb5 {[%emt 0:00:43]} Ra7 {[%emt 0:12:50]} 65. g6 {[%emt 0:00:29]} Ra4 {[%emt 0:00:20]} 66. Kg5 {[%emt 0:00:12]} Ra8 {[%emt 0:04:32]} 67. Rb7+ {[%emt 0:00:51]} (67. h5 $18 Ra7 68. h6+ Kf8 69. Rb8+ Ke7 70. h7 Ra5+ 71. Kh6 Kd6 72. h8=Q) 67... Kg8 {[%emt 0:00:08]} 68. Kh6 {[%emt 0:00:07]} Rc8 {[%emt 0:00:33]} 69. h5 {[%emt 0:00:07]} Ra8 {[%emt 0:00:31]} 70. Rb6 {[%emt 0:00:10]} Rf8 {[%emt 0:00:56]} 71. Kg5 {[%emt 0:01:36]} Ra8 {[%emt 0:01:20]} 72. h6 {[%emt 0:05:44]} Ra5+ {[%emt 0:00:24]} 73. Kf6 {[%emt 0:00:09]} Ra8 {[%emt 0:00:14]} 74. h7+ {[%emt 0:01:53]} Kh8 {[%emt 0:00:06]} 75. Kg5 {[%emt 0:00:56]} Kg7 {[%emt 0:00:47]} 76. Rb7+ {[%emt 0:00:16]} Kh8 {[%emt 0:00:04]} 77. Kh6 {[%emt 0:00:09]} Rg8 {[%emt 0:02:10]} 78. hxg8=Q+ {[%emt 0:00:10]} Kxg8 {[%emt 0:00:02]} 79. Rb8# {[%emt 0:00:06]} 1-0

[Event "WYCC 2018 G18"]
[Site "Halkidiki"]
[Date "2018.10.30"]
[Round "11"]
[White "Redondo Benavente, Ana"]
[Black "Manova, Ivana"]
[Result "1-0"]
[ECO "C45"]
[WhiteElo "2055"]
[BlackElo "1951"]
[Annotator "NA"]
[PlyCount "75"]
[EventDate "2018.10.20"]
[EventType "swiss"]
[EventCountry "GRE"]
[SourceTitle "playchess.com"]
[Source "ChessBase"]
[SourceQuality "1"]
[TimeControl "40/5400+30:1800+30"]

1. e4 {[%emt 0:00:00]} e5 {[%emt 0:00:00]} 2. Nf3 {[%emt 0:00:00]} Nc6 {[%emt 0:00:00]} 3. d4 {[%emt 0:00:00]} exd4 {[%emt 0:00:13]} 4. Nxd4 {[%emt 0:00:00]} Bc5 {[%emt 0:00:26]} 5. Nb3 {[%emt 0:00:07]} Bb6 {[%emt 0:00:36]} 6. Nc3 {[%emt 0:00:10]} d6 {[%emt 0:08:35]} 7. Qe2 {[%emt 0:00:16]} Nge7 {[%emt 0:00:57] C45: Scotch Game} (7... a5 8. a4 Nb4 9. Bf4 Qf6 10. Qd2 Ne7 11. O-O-O Ng6 12. Be3 Bxe3 13. Qxe3 O-O 14. g3 Bg4 15. Be2 Bxe2 16. Qxe2 {½-½ (41) Sethuraman,S (2657)-Melkumyan,H (2662) Yerevan 2018}) 8. Be3 {[%emt 0:00:33]} O-O {[%emt 0:00:55]} 9. O-O-O {[%emt 0:00:16]} f5 {[%emt 0:01:32]} 10. f4 {[%emt 0:01:20]} Qe8 {[%emt 0:09:20]} 11. g3 {[%emt 0:03:07]} Qg6 $146 {[%emt 0:08:38]} ({Predecessor:} 11... fxe4 $11 {keeps the balance.} 12. Bxb6 axb6 13. Qxe4 Bf5 14. Qc4+ d5 15. Qb5 {0-1 (56) Sasson,M (2089)-Villca,J (2297) Caba 2018}) 12. Bxb6 {[%emt 0:08:44]} axb6 {[%emt 0:00:41]} 13. Bg2 {[%emt 0:01:48]} Kh8 {[%emt 0:05:29]} 14. Kb1 {[%emt 0:02:42]} fxe4 {[%emt 0:10:22]} 15. Bxe4 {[%emt 0:00:43]} Bf5 {[%emt 0:02:16]} 16. Bxf5 {[%emt 0:04:02]} Rxf5 {[%emt 0:20:50]} 17. Rhf1 {[%emt 0:07:21]} Qf7 {[%emt 0:03:47]} 18. Qd2 {[%emt 0:10:36]} Na5 {[%emt 0:05:03]} 19. Nc1 {[%emt 0:21:15]} Nc4 {[%emt 0:01:28]} 20. Qe2 {[%emt 0:01:45]} Nc6 {[%emt 0:04:21]} 21. Rfe1 {[%emt 0:01:02]} b5 {[%emt 0:08:04]} 22. Qe6 {[%emt 0:01:07]} b4 {[%emt 0:05:26]} 23. Nd5 {[%emt 0:03:11]} Qxe6 {[%emt 0:01:25]} 24. Rxe6 {[%emt 0:00:01]} Rf7 {[%emt 0:00:14]} 25. Nb3 {[%emt 0:01:12]} Kg8 {[%emt 0:00:51]} 26. Re4 {[%emt 0:00:59]} b5 {[%emt 0:00:53]} 27. Nd2 {[%emt 0:01:12]} N6a5 {[%emt 0:00:35]} 28. Nxb4 {[%emt 0:01:24]} Nxd2+ {[%emt 0:00:27]} 29. Rxd2 $16 {[%emt 0:00:02]} g5 {[%emt 0:00:27]} 30. b3 {[%emt 0:02:24]} gxf4 {[%emt 0:00:29]} 31. gxf4 {[%emt 0:01:08]} Raf8 {[%emt 0:00:33]} 32. Nd5 {[%emt 0:01:05]} c6 {[%emt 0:00:33]} 33. Ne7+ {[%emt 0:00:05]} Kh8 {[%emt 0:00:07]} 34. Rxd6 {[%emt 0:02:10]} c5 {[%emt 0:00:49]} 35. f5 {[%emt 0:01:36]} c4 {[%emt 0:00:33]} 36. Kb2 {[%emt 0:00:37]} Nb7 {[%emt 0:00:22]} 37. Rc6 {[%emt 0:00:50]} Re8 {[%emt 0:00:36]} 38. Ng6+ {[%emt 0:00:23]} 1-0

[Event "WYCC 2018 G18"]
[Site "Halkidiki"]
[Date "2018.10.30"]
[Round "11"]
[White "Avetisyan, Mariam"]
[Black "Priyanka, Kumari"]
[Result "1-0"]
[ECO "E97"]
[WhiteElo "2049"]
[BlackElo "2005"]
[Annotator "NA"]
[PlyCount "131"]
[EventDate "2018.10.20"]
[EventType "swiss"]
[EventCountry "GRE"]
[SourceTitle "playchess.com"]
[Source "ChessBase"]
[SourceQuality "1"]
[TimeControl "40/5400+30:1800+30"]

1. d4 {[%emt 0:00:00]} Nf6 {[%emt 0:00:07]} 2. c4 {[%emt 0:00:00]} g6 {[%emt 0:00:09]} 3. Nc3 {[%emt 0:00:00]} Bg7 {[%emt 0:00:06]} 4. e4 {[%emt 0:00:00]} d6 {[%emt 0:00:05]} 5. Nf3 {[%emt 0:00:00]} O-O {[%emt 0:00:41]} 6. Be2 {[%emt 0:00:00]} e5 {[%emt 0:00:11]} 7. O-O {[%emt 0:00:03]} Nc6 {[%emt 0:00:12]} 8. Be3 {[%emt 0:00:03]} Ng4 {[%emt 0:04:03]} 9. Bg5 {[%emt 0:00:48]} f6 {[%emt 0:00:28]} 10. Bh4 {[%emt 0:00:05]} h5 {[%emt 0:17:47]} 11. h3 {[%emt 0:01:41] E97: Königsindisch (Klassisches System)} Nh6 {[%emt 0:00:17]} 12. dxe5 {[%emt 0:03:49]} (12. d5 Ne7 13. Ne1 g5 14. Bg3 g4 15. hxg4 hxg4 16. Nc2 f5 17. exf5 Nexf5 18. Ne4 Nxg3 19. fxg3 Rxf1+ 20. Qxf1 {½-½ (54) Potkin,V (2605)-Saric,I (2647) Sochi 2015}) 12... dxe5 {[%emt 0:00:25]} 13. Qxd8 {[%emt 0:03:15]} Nxd8 {[%emt 0:00:13]} 14. Rfd1 {[%emt 0:02:34]} Ne6 {[%emt 0:04:18]} 15. Bg3 {[%emt 0:03:39]} b6 $146 {[%emt 0:04:25]} ({Vorgänger:} 15... Nf7 16. Ne1 Nd4 17. Bd3 Nd8 18. Nc2 Nxc2 19. Bxc2 {½-½ (37) Incutto,C-Montoro,G Martinez Valle 1993}) 16. Nh4 {[%emt 0:06:08]} Kh7 {[%emt 0:02:00]} 17. Nd5 {[%emt 0:11:31]} Re8 {[%emt 0:05:27]} 18. Nf3 {[%emt 0:06:48]} Bb7 {[%emt 0:01:10]} 19. Bf1 {[%emt 0:05:57]} Rad8 {[%emt 0:01:22]} 20. Nd2 {[%emt 0:05:47]} Rd7 {[%emt 0:06:23]} 21. Nb3 {[%emt 0:03:59]} Red8 {[%emt 0:01:27]} 22. f3 {[%emt 0:03:46]} Kg8 {[%emt 0:13:38]} 23. a4 {[%emt 0:04:39]} f5 {[%emt 0:10:53]} 24. c5 {[%emt 0:11:09]} c6 {[%emt 0:06:57]} 25. Nc3 {[%emt 0:01:58]} Rxd1 {[%emt 0:00:18]} 26. Rxd1 {[%emt 0:00:03]} Rxd1 {[%emt 0:00:45]} 27. Nxd1 {[%emt 0:00:04]} Nxc5 {[%emt 0:00:16]} 28. Nxc5 {[%emt 0:00:10]} bxc5 {[%emt 0:00:05]} 29. Bf2 {[%emt 0:00:25]} Bf8 {[%emt 0:00:51]} 30. b3 {[%emt 0:00:55]} fxe4 {[%emt 0:03:30]} 31. fxe4 {[%emt 0:00:04]} Nf7 {[%emt 0:00:10]} 32. Be3 {[%emt 0:08:16]} Bc8 {[%emt 0:06:50]} 33. Bc4 {[%emt 0:00:34]} Kg7 {[%emt 0:00:14]} 34. Nb2 {[%emt 0:01:23]} Nd6 {[%emt 0:01:56]} 35. Bxc5 {[%emt 0:02:45]} a6 {[%emt 0:05:33]} 36. Bd3 {[%emt 0:01:02]} Kf7 {[%emt 0:00:38]} 37. b4 {[%emt 0:03:51]} Be7 {[%emt 0:01:15]} 38. a5 {[%emt 0:02:40]} Ne8 {[%emt 0:03:03]} 39. Na4 {[%emt 0:06:08]} Nc7 {[%emt 0:00:12]} 40. Kf2 {[%emt 0:00:00]} Bxc5+ {[%emt 0:00:00]} 41. Nxc5 {[%emt 0:02:03]} Kf6 {[%emt 0:02:26]} 42. Kg3 {[%emt 0:04:21]} Kg5 {[%emt 0:00:40]} 43. h4+ {[%emt 0:09:10]} Kf6 {[%emt 0:00:12]} 44. Be2 {[%emt 0:00:21]} Nb5 {[%emt 0:04:53]} 45. Kf2 {[%emt 0:00:58]} Kg7 {[%emt 0:02:46]} 46. g4 {[%emt 0:03:55]} hxg4 {[%emt 0:04:15]} 47. Kg3 {[%emt 0:00:45]} Kf6 {[%emt 0:05:10]} 48. Bxg4 {[%emt 0:01:14]} Bxg4 {[%emt 0:00:17]} 49. Kxg4 {[%emt 0:00:02]} Nc7 {[%emt 0:00:20]} 50. Nd7+ {[%emt 0:03:20]} Ke6 {[%emt 0:00:30]} 51. Nb8 {[%emt 0:01:00]} Kf6 {[%emt 0:01:58]} 52. Nxc6 {[%emt 0:00:05]} Nb5 {[%emt 0:01:06]} 53. Nb8 {[%emt 0:00:28]} Nc7 {[%emt 0:00:05]} 54. Nd7+ {[%emt 0:01:17]} Ke6 {[%emt 0:00:18]} 55. Nc5+ {[%emt 0:00:03]} Kf6 {[%emt 0:00:13]} 56. Kf3 {[%emt 0:02:03]} Kf7 {[%emt 0:01:21]} 57. Ke2 {[%emt 0:00:15]} Ke7 {[%emt 0:00:19]} 58. Kd3 {[%emt 0:00:13]} Kd6 {[%emt 0:00:25]} 59. Kc4 $18 {[%emt 0:00:21]} Kc6 {[%emt 0:00:12]} 60. Nxa6 {[%emt 0:00:42]} Ne8 {[%emt 0:00:42]} 61. b5+ {[%emt 0:00:10]} Kb7 {[%emt 0:00:09]} 62. Nc5+ {[%emt 0:00:04]} Kc7 {[%emt 0:00:25]} 63. b6+ {[%emt 0:01:06]} Kb8 {[%emt 0:00:10]} 64. a6 {[%emt 0:00:18]} Nd6+ {[%emt 0:00:21]} 65. Kd5 {[%emt 0:00:07]} Nc8 {[%emt 0:00:14]} 66. Nd7+ {[%emt 0:00:13]} 1-0

[Event "WYCC 2018 G18"]
[Site "Halkidiki"]
[Date "2018.10.30"]
[Round "11"]
[White "Cvitan, Ena"]
[Black "Dong, Khanh Linh"]
[Result "1/2-1/2"]
[ECO "D35"]
[WhiteElo "2034"]
[BlackElo "1879"]
[Annotator "NA"]
[PlyCount "109"]
[EventDate "2018.10.20"]
[EventType "swiss"]
[EventCountry "GRE"]
[SourceTitle "playchess.com"]
[Source "ChessBase"]
[SourceQuality "1"]
[TimeControl "40/5400+30:1800+30"]

1. d4 {[%emt 0:00:00]} d5 {[%emt 0:00:00]} 2. c4 {[%emt 0:00:00]} e6 {[%emt 0:00:00]} 3. Nc3 {[%emt 0:00:00]} Nf6 {[%emt 0:00:00]} 4. cxd5 Nxd5 {[%emt 0:00:47]} 5. e4 {[%emt 0:01:09]} Nxc3 {[%emt 0:02:09]} 6. bxc3 c5 {[%emt 0:04:28]} 7. Rb1 {[%emt 0:01:45]} Qa5 {[%emt 0:03:01] D35: Queen's Gambit Declined: Exchange Variation} (7... Be7 8. Nf3 O-O 9. h4 cxd4 10. cxd4 Nc6 11. Bb5 a6 12. Bxc6 bxc6 13. h5 h6 14. Ne5 Bd6 15. O-O {½-½ (30) Yu,Y (2765)-Radjabov,T (2751) Batumi 2018}) 8. Bd2 {[%emt 0:07:12]} cxd4 {[%emt 0:09:56]} 9. cxd4 {[%emt 0:11:46]} Qxa2 {[%emt 0:12:41]} 10. Nf3 {[%emt 0:08:07]} a6 $146 {[%emt 0:04:58]} ({Predecessor:} 10... Be7 11. Bd3 O-O 12. O-O Qa3 13. Qe2 Qd6 14. Rfd1 Re8 15. e5 {0-1 (49) Luz,A (2170)-Terao,R (2384) Florianopolis 2018}) 11. Bd3 {[%emt 0:08:33]} Qa3 {[%emt 0:05:03]} 12. Qe2 {[%emt 0:03:14]} Nc6 {[%emt 0:06:19]} 13. O-O Qd6 14. d5 {[%emt 0:07:36]} Nd8 {[%emt 0:09:10]} 15. Bb4 {[%emt 0:08:43]} Qf4 {[%emt 0:05:30]} 16. Bxf8 {[%emt 0:03:48]} Kxf8 {[%emt 0:00:48]} 17. Qb2 {[%emt 0:01:06]} Qd6 {[%emt 0:12:46]} 18. Rfe1 {[%emt 0:07:43]} Rb8 {[%emt 0:03:18]} 19. e5 Qxd5 {[%emt 0:03:11]} 20. Qa3+ {[%emt 0:08:57]} Ke8 {[%emt 0:03:25]} 21. Red1 {[%emt 0:05:21]} b5 {[%emt 0:07:55]} 22. Bxh7 {[%emt 0:06:18]} Qb7 {[%emt 0:00:52]} 23. Qd6 {[%emt 0:02:57]} Qb6 {[%emt 0:01:08]} 24. Qd3 {[%emt 0:03:17]} Rb7 {[%emt 0:02:10]} 25. Be4 {[%emt 0:00:56]} Rd7 {[%emt 0:00:15]} 26. Qc2 {[%emt 0:01:19]} Qc7 {[%emt 0:00:30]} 27. Rxd7 {[%emt 0:00:38]} Qxc2 {[%emt 0:01:12]} 28. Rxd8+ {[%emt 0:00:07]} Kxd8 {[%emt 0:00:17]} 29. Bxc2 {[%emt 0:00:01]} Bb7 {[%emt 0:00:17]} 30. Bd3 {[%emt 0:02:48]} Kc7 {[%emt 0:00:19]} 31. Ng5 {[%emt 0:01:13]} Rd8 {[%emt 0:00:06]} 32. Be2 {[%emt 0:00:26]} Rd7 {[%emt 0:00:25]} 33. h4 {[%emt 0:00:37]} Kb6 34. h5 Kc5 {[%emt 0:02:31]} 35. g4 {[%emt 0:01:00]} b4 {[%emt 0:00:00]} 36. Rc1+ {[%emt 0:00:30]} Kb6 {[%emt 0:00:18]} 37. Rd1 {[%emt 0:00:39]} Bd5 {[%emt 0:00:42]} 38. Ne4 a5 39. g5 {[%emt 0:01:10]} Rd8 {[%emt 0:00:39]} 40. Nd6 {[%emt 0:00:00]} b3 {[%emt 0:00:00]} 41. Bc4 {[%emt 0:14:04]} a4 $1 {[%emt 0:09:13]} 42. h6 $2 {[%emt 0:07:39]} (42. Nxf7 b2) (42. Bxd5 $11 exd5 43. Rb1 (43. Rxd5 Kc6 $11) (43. Nxf7 Ra8 $11)) 42... gxh6 {[%emt 0:02:48]} 43. gxh6 {[%emt 0:00:02]} Rg8+ {[%emt 0:00:42]} 44. Kf1 {[%emt 0:00:48]} Bf3 $2 {[%emt 0:02:19]} (44... b2 $11 45. Ke2 (45. Bxd5 exd5 46. Ke2 a3 $19) 45... a3) 45. Rb1 {[%emt 0:02:13]} Kc5 {[%emt 0:03:19]} 46. Bxb3 {[%emt 0:01:09]} Rg5 {[%emt 0:08:06]} 47. Bxa4 {[%emt 0:05:00]} Bg2+ {[%emt 0:00:28]} 48. Ke2 {[%emt 0:02:02]} Rxe5+ {[%emt 0:00:07]} 49. Kd2 {[%emt 0:00:24]} Kxd6 {[%emt 0:00:10]} 50. Rb5 {[%emt 0:02:05]} Be4 {[%emt 0:06:26]} 51. Rxe5 {[%emt 0:00:36]} Kxe5 {[%emt 0:00:06]} 52. Ke3 {[%emt 0:00:24]} Bh7 {[%emt 0:00:47]} 53. f4+ {[%emt 0:00:21]} Kf6 {[%emt 0:00:35]} 54. Be8 {[%emt 0:00:27]} Kg6 $11 {[%emt 0:00:14]} 55. f5+ {[%emt 0:00:45]} 1/2-1/2